fUST/lending_fUST_20250814
["ID","MTS","AMOUNT","RATE_DAILY","PERIOD"]
[379061187,1755111067805,-470.24,0.00019726,2]
[379061188,1755111067820,-1972.82,0.00019726,2]
[379061189,1755111067834,-460.0,0.00019726,2]
[379061190,1755111067849,-780.89,0.00019726,2]
[379061191,1755111067863,-2762.44,0.00019726,2]
[379061192,1755111067877,-460.0,0.00019726,2]
[379061193,1755111067892,-460.0,0.00019726,2]
[379061194,1755111067906,-460.0,0.00019726,2]
[379061195,1755111067921,-1093.52,0.00019726,2]
[379061196,1755111067936,-460.0,0.00019726,2]
[379061197,1755111067950,-591.61287305,0.00019726,2]
[379061198,1755111067964,-460.0,0.00019726,2]
[379061199,1755111067979,-1726.75,0.00019726,2]
[379061200,1755111067993,-460.0,0.00019726,2]
[379061201,1755111068007,-1920.17,0.00019726,2]
[379061202,1755111068022,-1945.14,0.00019726,2]
[379061203,1755111068036,-460.0,0.00019726,2]
[379061204,1755111068050,-499.4,0.00019726,2]
[379061205,1755111068063,-470.18627361,0.00019726,2]
[379061206,1755111068077,-785.95,0.00019726,2]
[379061207,1755111068091,-460.0,0.00019726,2]
[379061208,1755111068239,-460.0,0.00019726,2]
[379061209,1755111068249,-1074.73,0.00019726,2]
[379061210,1755111068258,-460.0,0.00019726,2]
[379061211,1755111068268,-460.0,0.00019726,2]
[379061212,1755111068278,-2050.41,0.00019726,2]
[379061213,1755111068288,-542.88,0.00019726,2]
[379061214,1755111068297,-460.0,0.00019726,2]
[379061215,1755111068306,-460.0,0.00019726,2]
[379061216,1755111068315,-460.0,0.00019726,2]
[379061217,1755111068325,-251.60792685,0.00019726,2]
[379061218,1755111068335,-460.0,0.00019726,2]
[379061219,1755111068344,-460.0,0.00019726,2]
[379061220,1755111068353,-560.82,0.00019726,2]
[379061221,1755111068363,-10453.66,0.00019726,2]
[379061222,1755111068372,-460.0,0.00019726,2]
[379061223,1755111068382,-798.25,0.00019726,2]
[379061224,1755111068391,-460.0,0.00019726,2]
[379061225,1755111068400,-1718.34,0.00019726,2]
[379061226,1755111068410,-771.17,0.00019726,2]
[379061227,1755111068419,-460.0,0.00019726,2]
[379061228,1755111068429,-460.0,0.00019726,2]
[379061229,1755111068438,-460.0,0.00019726,2]
[379061230,1755111068448,-460.0,0.00019726,2]
[379061231,1755111068458,-472.4,0.00019726,2]
[379061232,1755111068467,-460.0,0.00019726,2]
[379061233,1755111068477,-460.0,0.00019726,2]
[379061234,1755111068486,-460.0,0.00019726,2]
[379061235,1755111068496,-786.58,0.00019726,2]
[379061236,1755111068506,-3167.84,0.00019726,2]
[379061237,1755111068515,-460.0,0.00019726,2]
[379061238,1755111068526,-510.58,0.00019726,2]
[379061239,1755111068536,-460.0,0.00019726,2]
[379061240,1755111068545,-4058.25,0.00019726,2]
[379061241,1755111068555,-247.52405072,0.00019726,2]
[379061242,1755111068564,-460.0,0.00019726,2]
[379061243,1755111068574,-366.98673198,0.00019726,2]
[379061244,1755111068584,-460.0,0.00019726,2]
[379061245,1755111068593,-460.0,0.00019726,2]
[379061246,1755111068602,-460.0,0.00019726,2]
[379061247,1755111068612,-460.0,0.00019726,2]
[379061248,1755111068621,-854.77,0.00019726,2]
[379061249,1755111068631,-460.0,0.00019726,2]
[379061250,1755111068640,-1359.08,0.00019726,2]
[379061251,1755111068650,-482.54,0.00019726,2]
[379061252,1755111068659,-2272.99,0.00019726,2]
[379061253,1755111068669,-460.0,0.00019726,2]
[379061254,1755111068678,-894.82,0.00019726,2]
[379061255,1755111068687,-460.0,0.00019726,2]
[379061256,1755111068698,-916.35,0.00019726,2]
[379061257,1755111068707,-460.0,0.00019726,2]
[379061258,1755111068717,-529.16,0.00019726,2]
[379061259,1755111068726,-460.0,0.00019726,2]
[379061260,1755111068735,-460.0,0.00019726,2]
[379061261,1755111068747,-460.0,0.00019726,2]
[379061262,1755111068757,-460.0,0.00019726,2]
[379061263,1755111068766,-1313.79,0.00019726,2]
[379061264,1755111068776,-4121.11,0.00019726,2]
[379061265,1755111068787,-719.23,0.00019726,2]
[379061266,1755111068796,-763.3,0.00019726,2]
[379061267,1755111068806,-689.19,0.00019726,2]
[379061268,1755111068815,-465.66,0.00019726,2]
[379061269,1755111068825,-460.0,0.00019726,2]
[379061270,1755111068834,-460.0,0.00019726,2]
[379061271,1755111068843,-460.0,0.00019726,2]
[379061272,1755111068852,-460.0,0.00019726,2]
[379061273,1755111068862,-8448.68,0.00019726,2]
[379061274,1755111068871,-460.0,0.00019726,2]
[379061275,1755111068881,-460.0,0.00019726,2]
[379061276,1755111068890,-460.0,0.00019726,2]
[379061277,1755111068899,-460.0,0.00019726,2]
[379061278,1755111068909,-460.0,0.00019726,2]
[379061279,1755111068920,-729.5,0.00019726,2]
[379061280,1755111068930,-1382.67,0.00019726,2]
[379061281,1755111068939,-460.0,0.00019726,2]
[379061282,1755111068949,-586.58,0.00019726,2]
[379061283,1755111068958,-460.0,0.00019726,2]
[379061284,1755111068968,-460.0,0.00019726,2]
[379061285,1755111068977,-2019.38,0.00019726,2]
[379061286,1755111068987,-598.57,0.00019726,2]
[379061287,1755111068996,-460.0,0.00019726,2]
[379061288,1755111069006,-353.34086013,0.00019726,2]
[379061289,1755111069015,-540.21,0.00019726,2]
[379061290,1755111069025,-460.0,0.00019726,2]
[379061291,1755111069035,-1225.81,0.00019726,2]
[379061292,1755111069044,-469.46,0.00019726,2]
[379061293,1755111069054,-1046.87,0.00019726,2]
[379061294,1755111069063,-460.0,0.00019726,2]
[379061295,1755111069073,-460.0,0.00019726,2]
[379061296,1755111069082,-460.0,0.00019726,2]
[379061297,1755111069091,-1388.85,0.00019726,2]
[379061298,1755111069114,-460.0,0.00019726,2]
[379061299,1755111069124,-1104.55,0.00019726,2]
[379061300,1755111069134,-460.0,0.00019726,2]
[379061301,1755111069143,-460.0,0.00019726,2]
[379061302,1755111069153,-543.86,0.00019726,2]
[379061303,1755111069163,-460.0,0.00019726,2]
[379061304,1755111069172,-1000.0,0.00019726,2]
[379061305,1755111069182,-460.0,0.00019726,2]
[379061306,1755111069191,-250.0,0.00019726,2]
[379061307,1755111069212,-151.0,0.00019773,2]
[379061308,1755111069232,-426.58,0.00019774,3]
[379061309,1755111069250,-376.5,0.00019774,3]
[379061310,1755111069260,-881.0,0.00019784,2]
[379061311,1755111069270,-151.0,0.00019809,2]
[379061312,1755111069279,-1746.03377568,0.00019809,2]
[379061313,1755111069289,-881.0,0.00019879,2]
[379061314,1755111069298,-881.0,0.00019881,2]
[379061315,1755111069307,-603.0,0.00019888,2]
[379061316,1755111069316,-5919.66495979,0.000199,2]
[379061317,1755111069325,-881.0,0.00019919,2]
[379061318,1755111069334,-881.0,0.00019939,2]
[379061319,1755111069343,-168.0,0.00019941,2]
[379061320,1755111069353,-151.0,0.00019973,2]
[379061321,1755111069362,-420.0,0.00019985,2]
[379061322,1755111069372,-151.0,0.0002,2]
[379061323,1755111069382,-151.0,0.0002,2]
[379061324,1755111069391,-151.0,0.0002,2]
[379061325,1755111069400,-164.509196,0.0002,2]
[379061326,1755111069410,-5342.90318811,0.0002,3]
[379061327,1755111069420,-327.25950545,0.0002,2]
[379061328,1755111069430,-460.0,0.0002,2]
[379061329,1755111069439,-460.0,0.0002,2]
[379061330,1755111069450,-534.48078401,0.0002,2]
[379061331,1755111069459,-460.0,0.0002,2]
[379061332,1755111069469,-460.0,0.0002,2]
[379061333,1755111069479,-460.0,0.0002,2]
[379061334,1755111069489,-732.46,0.0002,2]
[379061335,1755111069499,-460.0,0.0002,2]
[379061336,1755111069510,-460.0,0.0002,2]
[379061337,1755111069519,-460.0,0.0002,2]
[379061338,1755111069529,-460.0,0.0002,2]
[379061339,1755111069539,-460.0,0.0002,2]
[379061340,1755111069548,-460.0,0.0002,2]
[379061341,1755111069557,-460.0,0.0002,2]
[379061342,1755111069566,-460.0,0.0002,2]
[379061343,1755111069575,-460.0,0.0002,2]
[379061344,1755111069584,-460.0,0.0002,2]
[379061345,1755111069593,-460.0,0.0002,2]
[379061346,1755111069603,-460.0,0.0002,2]
[379061347,1755111069613,-460.0,0.0002,2]
[379061348,1755111069623,-229.37324603,0.0002,2]
[379061349,1755111069632,-460.0,0.0002,2]
[379061350,1755111069642,-460.0,0.0002,2]
[379061351,1755111069651,-460.0,0.0002,2]
[379061352,1755111069661,-460.0,0.0002,2]
[379061353,1755111069671,-460.0,0.0002,2]
[379061354,1755111069681,-460.0,0.0002,2]
[379061355,1755111069691,-460.0,0.0002,2]
[379061356,1755111069701,-460.0,0.0002,2]
[379061357,1755111069711,-460.0,0.0002,2]
[379061358,1755111069722,-460.0,0.0002,2]
[379061359,1755111069732,-460.0,0.0002,2]
[379061360,1755111069742,-460.0,0.0002,2]
[379061361,1755111069754,-460.0,0.0002,2]
[379061362,1755111069764,-460.0,0.0002,2]
[379061363,1755111069774,-460.0,0.0002,2]
[379061364,1755111069784,-460.0,0.0002,2]
[379061365,1755111069795,-466.30538983,0.0002,2]
[379061366,1755111069804,-460.0,0.0002,2]
[379061367,1755111069813,-460.0,0.0002,2]
[379061368,1755111069823,-460.0,0.0002,2]
[379061369,1755111069833,-460.0,0.0002,2]
[379061370,1755111069842,-460.0,0.0002,2]
[379061371,1755111069852,-460.0,0.0002,2]
[379061372,1755111069861,-702.73,0.0002,2]
[379061373,1755111069870,-460.0,0.0002,2]
[379061374,1755111069880,-460.0,0.0002,2]
[379061375,1755111069889,-460.0,0.0002,2]
[379061376,1755111069898,-460.0,0.0002,2]
[379061377,1755111069909,-460.0,0.0002,2]
[379061378,1755111069922,-460.0,0.0002,2]
[379061379,1755111069931,-460.0,0.0002,2]
[379061380,1755111070100,-155.16874215,0.0002,2]
[379061381,1755111070119,-460.0,0.0002,2]
[379061382,1755111070128,-460.0,0.0002,2]
[379061383,1755111070138,-460.0,0.0002,2]
[379061384,1755111070147,-460.0,0.0002,2]
[379061385,1755111070157,-460.0,0.0002,2]
[379061386,1755111070168,-460.0,0.0002,2]
[379061387,1755111070178,-460.0,0.0002,2]
[379061388,1755111070192,-460.0,0.0002,2]
[379061389,1755111070201,-876.48,0.0002,2]
[379061390,1755111070211,-460.0,0.0002,2]
[379061391,1755111070221,-577.95,0.0002,2]
[379061392,1755111070231,-627.08,0.0002,2]
[379061393,1755111070240,-460.0,0.0002,2]
[379061394,1755111070250,-460.0,0.0002,2]
[379061395,1755111070259,-460.0,0.0002,2]
[379061396,1755111070269,-460.0,0.0002,2]
[379061397,1755111070278,-1286.61,0.0002,2]
[379061398,1755111070288,-460.0,0.0002,2]
[379061399,1755111070297,-730.35,0.0002,2]
[379061400,1755111070306,-460.0,0.0002,2]
[379061401,1755111070315,-460.0,0.0002,2]
[379061402,1755111070325,-460.0,0.0002,2]
[379061403,1755111070334,-460.0,0.0002,2]
[379061404,1755111070344,-460.0,0.0002,2]
[379061405,1755111070354,-460.0,0.0002,2]
[379061406,1755111070363,-460.0,0.0002,2]
[379061407,1755111070372,-460.0,0.0002,2]
[379061408,1755111070382,-460.0,0.0002,2]
[379061409,1755111070391,-460.0,0.0002,2]
[379061410,1755111070401,-460.0,0.0002,2]
[379061411,1755111070411,-460.0,0.0002,2]
[379061412,1755111070422,-362.74854861,0.0002,2]
[379061413,1755111070431,-1763.54,0.0002,2]
[379061414,1755111070440,-460.0,0.0002,2]
[379061415,1755111070449,-460.0,0.0002,2]
[379061416,1755111070459,-460.0,0.0002,2]
[379061417,1755111070469,-469.56247493,0.0002,2]
[379061418,1755111070478,-688.07,0.0002,2]
[379061419,1755111070487,-460.0,0.0002,2]
[379061420,1755111070496,-460.0,0.0002,2]
[379061421,1755111070506,-460.0,0.0002,2]
[379061422,1755111070515,-460.0,0.0002,2]
[379061423,1755111070525,-460.0,0.0002,2]
[379061424,1755111070535,-460.0,0.0002,2]
[379061425,1755111070546,-727.93,0.0002,2]
[379061426,1755111070555,-460.0,0.0002,2]
[379061427,1755111070565,-460.0,0.0002,2]
[379061428,1755111070574,-460.0,0.0002,2]
[379061429,1755111070583,-460.0,0.0002,2]
[379061430,1755111070593,-460.0,0.0002,2]
[379061431,1755111070603,-460.0,0.0002,2]
[379061432,1755111070612,-460.0,0.0002,2]
[379061433,1755111070622,-460.0,0.0002,2]
[379061434,1755111070631,-460.0,0.0002,2]
[379061435,1755111070641,-1570.52,0.0002,2]
[379061436,1755111070650,-460.93,0.0002,2]
[379061437,1755111070659,-460.0,0.0002,2]
[379061438,1755111070671,-793.07,0.0002,2]
[379061439,1755111070680,-627.84,0.0002,2]
[379061440,1755111070689,-1334.84,0.0002,2]
[379061441,1755111070698,-460.0,0.0002,2]
[379061442,1755111070708,-460.0,0.0002,2]
[379061443,1755111070717,-460.0,0.0002,2]
[379061444,1755111070726,-460.0,0.0002,2]
[379061445,1755111070735,-460.0,0.0002,2]
[379061446,1755111070745,-460.0,0.0002,2]
[379061447,1755111070759,-460.0,0.0002,2]
[379061448,1755111070769,-460.0,0.0002,2]
[379061449,1755111070778,-712.59,0.0002,2]
[379061450,1755111070787,-460.0,0.0002,2]
[379061451,1755111070796,-460.0,0.0002,2]
[379061452,1755111070806,-460.0,0.0002,2]
[379061453,1755111070815,-460.0,0.0002,2]
[379061454,1755111070825,-460.0,0.0002,2]
[379061455,1755111070834,-460.0,0.0002,2]
[379061456,1755111070844,-283.16942035,0.0002,2]
[379061457,1755111070854,-460.0,0.0002,2]
[379061458,1755111070863,-460.0,0.0002,2]
[379061459,1755111070872,-460.0,0.0002,2]
[379061460,1755111070883,-460.0,0.0002,2]
[379061461,1755111070892,-733.41,0.0002,2]
[379061462,1755111070901,-460.0,0.0002,2]
[379061463,1755111070911,-460.0,0.0002,2]
[379061464,1755111070921,-260.97072022,0.0002,2]
[379061465,1755111070930,-691.67,0.0002,2]
[379061466,1755111070940,-460.0,0.0002,2]
[379061467,1755111070949,-460.0,0.0002,2]
[379061468,1755111070958,-473.55281251,0.0002,2]
[379061469,1755111070968,-1094.83,0.0002,2]
[379061470,1755111070977,-638.01,0.0002,2]
[379061471,1755111070987,-1920.52,0.0002,2]
[379061472,1755111070996,-460.0,0.0002,2]
[379061473,1755111071006,-460.0,0.0002,2]
[379061474,1755111071016,-460.0,0.0002,2]
[379061475,1755111071026,-460.0,0.0002,2]
[379061476,1755111071035,-460.0,0.0002,2]
[379061477,1755111071045,-460.0,0.0002,2]
[379061478,1755111071055,-150.74041562,0.0002,2]
[379061479,1755111071064,-460.0,0.0002,2]
[379061480,1755111071074,-460.0,0.0002,2]
[379061481,1755111071084,-460.0,0.0002,2]
[379061482,1755111071093,-712.21,0.0002,2]
[379061483,1755111071106,-460.0,0.0002,2]
[379061484,1755111071116,-460.0,0.0002,2]
[379061485,1755111071126,-460.0,0.0002,2]
[379061486,1755111071135,-474.92,0.0002,2]
[379061487,1755111071144,-460.0,0.0002,2]
[379061488,1755111071154,-460.0,0.0002,2]
[379061489,1755111071164,-460.0,0.0002,2]
[379061490,1755111071173,-460.0,0.0002,2]
[379061491,1755111071183,-476.62,0.0002,2]
[379061492,1755111071192,-460.0,0.0002,2]
[379061493,1755111071202,-460.0,0.0002,2]
[379061494,1755111071211,-429.35068005,0.0002,2]
[379061495,1755111071221,-460.0,0.0002,2]
[379061496,1755111071231,-460.0,0.0002,2]
[379061497,1755111071241,-460.0,0.0002,2]
[379061498,1755111071251,-462.67232185,0.0002,2]
[379061499,1755111071261,-460.0,0.0002,2]
[379061500,1755111071270,-3000.81,0.0002,2]
[379061501,1755111071280,-460.0,0.0002,2]
[379061502,1755111071290,-460.0,0.0002,2]
[379061503,1755111071300,-460.0,0.0002,2]
[379061504,1755111071310,-566.38,0.0002,2]
[379061505,1755111071320,-358.73,0.0002,2]
[379061506,1755111071329,-460.0,0.0002,2]
[379061507,1755111071339,-526.38539072,0.0002,2]
[379061508,1755111071348,-953.47,0.0002,2]
[379061509,1755111071357,-460.0,0.0002,2]
[379061510,1755111071367,-460.0,0.0002,2]
[379061511,1755111071376,-549.06,0.0002,2]
[379061512,1755111071386,-504.13,0.0002,2]
[379061513,1755111071395,-460.0,0.0002,2]
[379061514,1755111071404,-460.0,0.0002,2]
[379061515,1755111071414,-460.0,0.0002,2]
[379061516,1755111071423,-460.0,0.0002,2]
[379061517,1755111071432,-915.64,0.0002,2]
[379061518,1755111071441,-337.54119493,0.0002,2]
[379061519,1755111071451,-460.0,0.0002,2]
[379061520,1755111071460,-460.0,0.0002,2]
[379061521,1755111071470,-594.92,0.0002,2]
[379061522,1755111071479,-460.0,0.0002,2]
[379061523,1755111071488,-552.399241,0.0002,2]
[379061524,1755111071498,-460.0,0.0002,2]
[379061525,1755111071507,-1704.74,0.0002,2]
[379061526,1755111071516,-460.0,0.0002,2]
[379061527,1755111071526,-460.0,0.0002,2]
[379061528,1755111071536,-460.0,0.0002,2]
[379061529,1755111071546,-460.0,0.0002,2]
[379061530,1755111071555,-867.65,0.0002,2]
[379061531,1755111071564,-500.0,0.0002,2]
[379061532,1755111071573,-611.03,0.0002,2]
[379061533,1755111071583,-460.0,0.0002,2]
[379061534,1755111071592,-1488.0,0.0002,2]
[379061535,1755111071602,-460.0,0.0002,2]
[379061536,1755111071611,-460.0,0.0002,2]
[379061537,1755111071621,-1414.82,0.0002,2]
[379061538,1755111071631,-460.0,0.0002,2]
[379061539,1755111071737,-460.0,0.0002,2]
[379061540,1755111071750,-460.0,0.0002,2]
[379061541,1755111071761,-460.0,0.0002,2]
[379061542,1755111071771,-819.97,0.0002,2]
[379061543,1755111071780,-460.0,0.0002,2]
[379061544,1755111071790,-460.0,0.0002,2]
[379061545,1755111071800,-460.0,0.0002,2]
[379061546,1755111071809,-460.0,0.0002,2]
[379061547,1755111071818,-460.0,0.0002,2]
[379061548,1755111071831,-280.0,0.0002,2]
[379061549,1755111071840,-1362.37,0.0002,2]
[379061550,1755111071849,-563.12,0.0002,2]
[379061551,1755111071858,-467.8024199,0.0002,2]
[379061552,1755111071868,-460.0,0.0002,2]
[379061553,1755111071877,-1112.21,0.0002,2]
[379061554,1755111071890,-2365.36,0.0002,2]
[379061555,1755111071899,-460.0,0.0002,2]
[379061556,1755111071909,-460.0,0.0002,2]
[379061557,1755111071919,-460.0,0.0002,2]
[379061558,1755111071928,-2532.46,0.0002,2]
[379061559,1755111071938,-460.0,0.0002,2]
[379061560,1755111071947,-610.09,0.0002,2]
[379061561,1755111071956,-460.0,0.0002,2]
[379061562,1755111071966,-460.0,0.0002,2]
[379061563,1755111071976,-460.0,0.0002,2]
[379061564,1755111071986,-460.0,0.0002,2]
[379061565,1755111071996,-460.0,0.0002,2]
[379061566,1755111072006,-6923.07,0.0002,2]
[379061567,1755111072015,-460.0,0.0002,2]
[379061568,1755111072026,-1181.31,0.0002,2]
[379061569,1755111072036,-460.0,0.0002,2]
[379061570,1755111072047,-1108.84,0.0002,2]
[379061571,1755111072057,-1449.1,0.0002,2]
[379061572,1755111072067,-606.3,0.0002,2]
[379061573,1755111072077,-2125.73,0.0002,2]
[379061574,1755111072087,-460.0,0.0002,2]
[379061575,1755111072097,-460.0,0.0002,2]
[379061576,1755111072107,-627.37,0.0002,2]
[379061577,1755111072117,-460.0,0.0002,2]
[379061578,1755111072127,-537.36,0.0002,2]
[379061579,1755111072138,-460.0,0.0002,2]
[379061580,1755111072147,-460.0,0.0002,2]
[379061581,1755111072157,-562.26,0.0002,2]
[379061582,1755111072168,-1090.52,0.0002,2]
[379061583,1755111072178,-460.0,0.0002,2]
[379061584,1755111072188,-460.0,0.0002,2]
[379061585,1755111072198,-460.0,0.0002,2]
[379061586,1755111072208,-460.0,0.0002,2]
[379061587,1755111072218,-460.0,0.0002,2]
[379061588,1755111072228,-460.0,0.0002,2]
[379061589,1755111072239,-934.67,0.0002,2]
[379061590,1755111072249,-460.0,0.0002,2]
[379061591,1755111072259,-717.76,0.0002,2]
[379061592,1755111072269,-1180.89,0.0002,2]
[379061593,1755111072278,-460.0,0.0002,2]
[379061594,1755111072288,-460.0,0.0002,2]
[379061595,1755111072297,-467.67743274,0.0002,2]
[379061596,1755111072307,-460.0,0.0002,2]
[379061597,1755111072316,-460.0,0.0002,2]
[379061598,1755111072326,-549.84,0.0002,2]
[379061599,1755111072335,-460.0,0.0002,2]
[379061600,1755111072345,-460.0,0.0002,2]
[379061601,1755111072354,-460.0,0.0002,2]
[379061602,1755111072363,-460.0,0.0002,2]
[379061603,1755111072373,-460.0,0.0002,2]
[379061604,1755111072383,-460.0,0.0002,2]
[379061605,1755111072392,-460.0,0.0002,2]
[379061606,1755111072401,-460.0,0.0002,2]
[379061607,1755111072411,-460.0,0.0002,2]
[379061608,1755111072422,-460.0,0.0002,2]
[379061609,1755111072431,-460.0,0.0002,2]
[379061610,1755111072441,-917.23,0.0002,2]
[379061611,1755111072451,-1083.56,0.0002,2]
[379061612,1755111072460,-460.0,0.0002,2]
[379061613,1755111072469,-460.0,0.0002,2]
[379061614,1755111072480,-460.0,0.0002,2]
[379061615,1755111072489,-460.0,0.0002,2]
[379061616,1755111072499,-619.38,0.0002,2]
[379061617,1755111072509,-460.0,0.0002,2]
[379061618,1755111072518,-460.0,0.0002,2]
[379061619,1755111072529,-1703.01,0.0002,2]
[379061620,1755111072540,-866.89,0.0002,2]
[379061621,1755111072550,-460.0,0.0002,2]
[379061622,1755111072560,-460.0,0.0002,2]
[379061623,1755111072569,-460.0,0.0002,2]
[379061624,1755111072579,-522.0,0.0002,2]
[379061625,1755111072589,-460.0,0.0002,2]
[379061626,1755111072599,-513.96,0.0002,2]
[379061627,1755111072609,-806.51,0.0002,2]
[379061628,1755111072619,-460.0,0.0002,2]
[379061629,1755111072628,-476.06450782,0.0002,2]
[379061630,1755111072638,-460.0,0.0002,2]
[379061631,1755111072647,-566.33,0.0002,2]
[379061632,1755111072657,-460.0,0.0002,2]
[379061633,1755111072667,-460.0,0.0002,2]
[379061634,1755111072676,-346.61,0.0002,2]
[379061635,1755111072685,-460.0,0.0002,2]
[379061636,1755111072694,-460.0,0.0002,2]
[379061637,1755111072704,-672.54,0.0002,2]
[379061638,1755111072713,-460.0,0.0002,2]
[379061639,1755111072722,-509.74,0.0002,2]
[379061640,1755111072731,-460.0,0.0002,2]
[379061641,1755111072741,-460.0,0.0002,2]
[379061642,1755111072751,-791.56,0.0002,2]
[379061643,1755111072761,-460.0,0.0002,2]
[379061644,1755111072770,-2530.94,0.0002,2]
[379061645,1755111072779,-1703.22,0.0002,2]
[379061646,1755111072789,-460.0,0.0002,2]
[379061647,1755111072798,-460.0,0.0002,2]
[379061648,1755111072808,-1072.44,0.0002,2]
[379061649,1755111072817,-460.0,0.0002,2]
[379061650,1755111072827,-460.0,0.0002,2]
[379061651,1755111072836,-460.0,0.0002,2]
[379061652,1755111072846,-3405.29,0.0002,2]
[379061653,1755111072855,-460.0,0.0002,2]
[379061654,1755111072864,-1407.44,0.0002,2]
[379061655,1755111072873,-460.0,0.0002,2]
[379061656,1755111072882,-460.0,0.0002,2]
[379061657,1755111072892,-460.0,0.0002,2]
[379061658,1755111072901,-460.0,0.0002,2]
[379061659,1755111072910,-460.0,0.0002,2]
[379061660,1755111072920,-460.0,0.0002,2]
[379061661,1755111072929,-1442.51,0.0002,2]
[379061662,1755111072939,-1025.84,0.0002,2]
[379061663,1755111072948,-460.0,0.0002,2]
[379061664,1755111072957,-460.0,0.0002,2]
[379061665,1755111072967,-460.0,0.0002,2]
[379061666,1755111072977,-460.0,0.0002,2]
[379061667,1755111072987,-1471.75,0.0002,2]
[379061668,1755111072997,-460.0,0.0002,2]
[379061669,1755111073006,-656.82,0.0002,2]
[379061670,1755111073016,-467.85,0.0002,2]
[379061671,1755111073026,-460.0,0.0002,2]
[379061672,1755111073036,-460.0,0.0002,2]
[379061673,1755111073045,-1851.38,0.0002,2]
[379061674,1755111073055,-1825.28,0.0002,2]
[379061675,1755111073064,-460.0,0.0002,2]
[379061676,1755111073075,-460.0,0.0002,2]
[379061677,1755111073085,-460.0,0.0002,2]
[379061678,1755111073095,-306.27362275,0.0002,2]
[379061679,1755111073105,-460.0,0.0002,2]
[379061680,1755111073114,-460.0,0.0002,2]
[379061681,1755111073124,-460.0,0.0002,2]
[379061682,1755111073134,-460.0,0.0002,2]
[379061683,1755111073144,-689.26,0.0002,2]
[379061684,1755111073154,-1735.32,0.0002,2]
[379061685,1755111073163,-4087.19,0.0002,2]
[379061686,1755111073173,-514.65,0.0002,2]